[Event "December 5 Early 2023"]
[Site "https://www.chess.com"]
[Date "2023.12.05"]
[Round "10"]
[White "Kotyk, Michael"]
[Black "Martin, Lewis"]
[Result "1-0"]
[Board "119"]
[TimeControl "180+1"]
[WhiteFideId "16214501"]
[BlackFideId "410551"]
[WhiteElo "2505"]
[BlackElo "2277"]
[WhiteTeam "GER"]
[BlackTeam "ENG"]
[WhiteClock "0:00:11"]
[BlackClock "0:00:00"]

1. e4 {[%clk 0:01:57]}  c6 {[%clk 0:02:58]} 2. Nf3 {[%clk 0:01:56]}  d5 {[%clk 0:02:58]} 3. d3 {[%clk 0:01:57]}  dxe4 {[%clk 0:02:52]} 4. dxe4 {[%clk 0:01:58]}  Qxd1+ {[%clk 0:02:51]} 5. Kxd1 {[%clk 0:01:59]}  Bg4 {[%clk 0:02:50]} 6. Nd2 {[%clk 0:01:52]}  Nd7 {[%clk 0:02:49]} 7. h3 {[%clk 0:01:52]}  Bxf3+ {[%clk 0:02:46]} 8. Nxf3 {[%clk 0:01:52]}  O-O-O {[%clk 0:02:47]} 9. Bd2 {[%clk 0:01:50]}  e5 {[%clk 0:02:41]} 10. Bc4 {[%clk 0:01:49]}  f6 {[%clk 0:02:38]} 11. c3 {[%clk 0:01:33]}  Bc5 {[%clk 0:02:37]} 12. Ke2 {[%clk 0:01:32]}  Ne7 {[%clk 0:02:36]} 13. Ne1 {[%clk 0:01:29]}  Kc7 {[%clk 0:02:18]} 14. a4 {[%clk 0:01:29]}  Nc8 {[%clk 0:02:11]} 15. Nd3 {[%clk 0:01:25]}  Be7 {[%clk 0:02:10]} 16. a5 {[%clk 0:01:20]}  Nc5 {[%clk 0:02:09]} 17. Nxc5 {[%clk 0:01:20]}  Bxc5 {[%clk 0:02:09]} 18. f3 {[%clk 0:01:15]}  g6 {[%clk 0:02:04]} 19. b4 {[%clk 0:01:14]}  Be7 {[%clk 0:02:03]} 20. Be3 {[%clk 0:01:15]}  a6 {[%clk 0:02:01]} 21. h4 {[%clk 0:01:15]}  f5 {[%clk 0:01:55]} 22. Bd3 {[%clk 0:01:08]}  f4 {[%clk 0:01:49]} 23. Bf2 {[%clk 0:01:08]}  h6 {[%clk 0:01:49]} 24. g3 {[%clk 0:00:58]}  g5 {[%clk 0:01:48]} 25. gxf4 {[%clk 0:00:56]}  gxf4 {[%clk 0:01:47]} 26. Rhg1 {[%clk 0:00:55]}  Rhg8 {[%clk 0:01:46]} 27. Bc4 {[%clk 0:00:54]}  Rxg1 {[%clk 0:01:35]} 28. Rxg1 {[%clk 0:00:53]}  Bf8 {[%clk 0:01:32]} 29. Rg6 {[%clk 0:00:46]}  Rd6 {[%clk 0:01:26]} 30. Rg8 {[%clk 0:00:45]}  Rf6 {[%clk 0:01:26]} 31. Rh8 {[%clk 0:00:43]}  Nd6 {[%clk 0:01:25]} 32. Bb6+ {[%clk 0:00:39]}  Kd7 {[%clk 0:01:23]} 33. Rh7+ {[%clk 0:00:35]}  Ke8 {[%clk 0:01:17]} 34. Bb3 {[%clk 0:00:23]}  Be7 {[%clk 0:01:06]} 35. Rh8+ {[%clk 0:00:20]}  Bf8 {[%clk 0:01:04]} 36. Bc5 {[%clk 0:00:20]}  Kd7 {[%clk 0:00:52]} 37. h5 {[%clk 0:00:20]}  Be7 {[%clk 0:00:49]} 38. Rh7 {[%clk 0:00:20]}  Nc8 {[%clk 0:00:39]} 39. Bf2 {[%clk 0:00:19]}  Rd6 {[%clk 0:00:31]} 40. Bh4 {[%clk 0:00:18]}  Kd8 {[%clk 0:00:31]} 41. Rh8+ {[%clk 0:00:18]}  Kd7 {[%clk 0:00:29]} 42. Bf2 {[%clk 0:00:17]}  Rf6 {[%clk 0:00:23]} 43. Rh7 {[%clk 0:00:15]}  Kd8 {[%clk 0:00:20]} 44. Bc4 {[%clk 0:00:14]}  Bf8 {[%clk 0:00:20]} 45. Rh8 {[%clk 0:00:13]}  Kc7 {[%clk 0:00:18]} 46. Bg8 {[%clk 0:00:11]}  Ne7 {[%clk 0:00:17]} 47. Bb3 {[%clk 0:00:11]}  Kb8 {[%clk 0:00:16]} 48. Bc5 {[%clk 0:00:10]}  Kc7 {[%clk 0:00:12]} 49. Rxf8 {[%clk 0:00:10]}  Rxf8 {[%clk 0:00:12]} 50. Bxe7 {[%clk 0:00:11]}  Re8 {[%clk 0:00:10]} 51. Bc5 {[%clk 0:00:10]}  Kd7 {[%clk 0:00:09]} 52. Bf7 {[%clk 0:00:10]}  Rh8 {[%clk 0:00:08]} 53. Bg6 {[%clk 0:00:10]}  Ke6 {[%clk 0:00:06]} 54. Bf5+ {[%clk 0:00:11]}  Kf6 {[%clk 0:00:06]} 55. Bg4 {[%clk 0:00:10]}  Rd8 {[%clk 0:00:05]} 56. Bb6 {[%clk 0:00:11]}  Rd6 {[%clk 0:00:00]} 57. Bc7 {[%clk 0:00:11]} 1-0

[Event "December 5 Early 2023"]
[Site "https://www.chess.com"]
[Date "2023.12.05"]
[Round "10"]
[White "Baches Garcia, Guillermo"]
[Black "Zoete, Roelant"]
[Result "1-0"]
[Board "120"]
[TimeControl "180+1"]
[WhiteFideId "2209764"]
[BlackFideId "40103269"]
[WhiteElo "2502"]
[BlackElo "2261"]
[WhiteTeam "ESP"]
[BlackTeam "NED"]
[WhiteClock "0:00:36"]
[BlackClock "0:00:16"]

1. d4 {[%clk 0:03:00]}  d5 {[%clk 0:02:56]} 2. Nf3 {[%clk 0:02:59]}  Nf6 {[%clk 0:02:54]} 3. Bg5 {[%clk 0:03:00]}  h6 {[%clk 0:02:53]} 4. Bh4 {[%clk 0:02:59]}  g5 {[%clk 0:02:51]} 5. Bg3 {[%clk 0:02:58]}  e6 {[%clk 0:02:52]} 6. e3 {[%clk 0:02:58]}  b6 {[%clk 0:02:50]} 7. Nbd2 {[%clk 0:02:58]}  Bb7 {[%clk 0:02:50]} 8. Bd3 {[%clk 0:02:57]}  Nh5 {[%clk 0:02:50]} 9. Be5 {[%clk 0:02:45]}  f6 {[%clk 0:02:50]} 10. Ng1 {[%clk 0:02:45]}  Ng7 {[%clk 0:02:38]} 11. Bg3 {[%clk 0:02:35]}  Nd7 {[%clk 0:02:35]} 12. h4 {[%clk 0:02:27]}  gxh4 {[%clk 0:02:08]} 13. Bxh4 {[%clk 0:02:22]}  Qe7 {[%clk 0:01:58]} 14. Bg6+ {[%clk 0:02:19]}  Kd8 {[%clk 0:01:58]} 15. Ngf3 {[%clk 0:02:14]}  Kc8 {[%clk 0:01:57]} 16. Qe2 {[%clk 0:02:08]}  Qb4 {[%clk 0:01:54]} 17. O-O-O {[%clk 0:02:06]}  a5 {[%clk 0:01:43]} 18. Kb1 {[%clk 0:02:05]}  Ba6 {[%clk 0:01:41]} 19. Bd3 {[%clk 0:02:04]}  Bxd3 {[%clk 0:01:38]} 20. Qxd3 {[%clk 0:01:58]}  Nf5 {[%clk 0:01:38]} 21. c3 {[%clk 0:01:52]}  Qa4 {[%clk 0:01:30]} 22. e4 {[%clk 0:01:50]}  Nxh4 {[%clk 0:01:28]} 23. Nxh4 {[%clk 0:01:48]}  Kb7 {[%clk 0:01:18]} 24. exd5 {[%clk 0:01:40]}  exd5 {[%clk 0:01:16]} 25. Qf5 {[%clk 0:01:39]}  Qb5 {[%clk 0:01:04]} 26. c4 {[%clk 0:01:30]}  Qc6 {[%clk 0:00:55]} 27. Qxd5 {[%clk 0:01:20]}  Qxd5 {[%clk 0:00:55]} 28. cxd5 {[%clk 0:01:21]}  Bd6 {[%clk 0:00:42]} 29. Nf5 {[%clk 0:01:21]}  Rag8 {[%clk 0:00:38]} 30. g3 {[%clk 0:01:10]}  h5 {[%clk 0:00:31]} 31. Nf3 {[%clk 0:01:07]}  Nb8 {[%clk 0:00:23]} 32. Rde1 {[%clk 0:01:05]}  Re8 {[%clk 0:00:23]} 33. Re6 {[%clk 0:01:04]}  Nd7 {[%clk 0:00:20]} 34. Rhe1 {[%clk 0:01:04]}  Rxe6 {[%clk 0:00:20]} 35. dxe6 {[%clk 0:01:03]}  Nf8 {[%clk 0:00:20]} 36. e7 {[%clk 0:01:01]}  Bxe7 {[%clk 0:00:20]} 37. Rxe7 {[%clk 0:01:00]}  Ng6 {[%clk 0:00:20]} 38. Rg7 {[%clk 0:00:54]}  Nf8 {[%clk 0:00:19]} 39. d5 {[%clk 0:00:45]}  Kc8 {[%clk 0:00:17]} 40. N3d4 {[%clk 0:00:45]}  Nd7 {[%clk 0:00:17]} 41. Ne6 {[%clk 0:00:42]}  Re8 {[%clk 0:00:16]} 42. Ne7+ {[%clk 0:00:40]}  Kb8 {[%clk 0:00:15]} 43. Nc6+ {[%clk 0:00:40]}  Kc8 {[%clk 0:00:16]} 44. f4 {[%clk 0:00:38]}  a4 {[%clk 0:00:15]} 45. a3 {[%clk 0:00:38]}  b5 {[%clk 0:00:14]} 46. Kc2 {[%clk 0:00:38]}  b4 {[%clk 0:00:15]} 47. axb4 {[%clk 0:00:38]}  a3 {[%clk 0:00:15]} 48. bxa3 {[%clk 0:00:38]}  f5 {[%clk 0:00:16]} 49. b5 {[%clk 0:00:37]}  h4 {[%clk 0:00:17]} 50. gxh4 {[%clk 0:00:37]}  Nb6 {[%clk 0:00:16]} 51. Rxc7# {[%clk 0:00:36]} 1-0

[Event "December 5 Early 2023"]
[Site "https://www.chess.com"]
[Date "2023.12.05"]
[Round "10"]
[White "Golubenko, Valentina"]
[Black "Hernandez Jimenez, Alexander Andres"]
[Result "1/2-1/2"]
[Board "123"]
[TimeControl "180+1"]
[WhiteFideId "4501993"]
[BlackFideId "3900452"]
[WhiteElo "2225"]
[BlackElo "2387"]
[WhiteTeam "CRO"]
[BlackTeam "VEN"]
[WhiteClock "0:00:14"]
[BlackClock "0:00:03"]

1. e4 {[%clk 0:03:00]}  c5 {[%clk 0:02:50]} 2. Nf3 {[%clk 0:03:00]}  d6 {[%clk 0:02:50]} 3. Bc4 {[%clk 0:02:59]}  Nf6 {[%clk 0:02:47]} 4. O-O {[%clk 0:02:58]}  Nc6 {[%clk 0:02:46]} 5. Re1 {[%clk 0:02:56]}  a6 {[%clk 0:02:44]} 6. d4 {[%clk 0:02:55]}  b5 {[%clk 0:02:41]} 7. Bf1 {[%clk 0:02:42]}  cxd4 {[%clk 0:02:40]} 8. Nxd4 {[%clk 0:02:42]}  Bb7 {[%clk 0:02:40]} 9. Nc3 {[%clk 0:02:36]}  e6 {[%clk 0:02:39]} 10. Bg5 {[%clk 0:02:21]}  Be7 {[%clk 0:02:39]} 11. Qd2 {[%clk 0:02:09]}  O-O {[%clk 0:02:30]} 12. Rad1 {[%clk 0:02:08]}  Rc8 {[%clk 0:02:27]} 13. Nxc6 {[%clk 0:01:59]}  Rxc6 {[%clk 0:02:24]} 14. a3 {[%clk 0:01:50]}  Qc7 {[%clk 0:02:20]} 15. g3 {[%clk 0:01:41]}  h6 {[%clk 0:02:11]} 16. Bf4 {[%clk 0:01:36]}  Rd8 {[%clk 0:02:02]} 17. Bg2 {[%clk 0:01:35]}  Rc4 {[%clk 0:01:58]} 18. Qe2 {[%clk 0:01:19]}  b4 {[%clk 0:01:49]} 19. axb4 {[%clk 0:01:14]}  Rxb4 {[%clk 0:01:49]} 20. e5 {[%clk 0:01:13]}  dxe5 {[%clk 0:01:23]} 21. Bxe5 {[%clk 0:01:10]}  Qc8 {[%clk 0:01:10]} 22. Rxd8+ {[%clk 0:01:02]}  Bxd8 {[%clk 0:01:01]} 23. Bxb7 {[%clk 0:00:49]}  Qxb7 {[%clk 0:00:53]} 24. b3 {[%clk 0:00:49]}  Be7 {[%clk 0:00:38]} 25. Ra1 {[%clk 0:00:39]}  Ne4 {[%clk 0:00:25]} 26. Qxa6 {[%clk 0:00:32]}  Nxc3 {[%clk 0:00:16]} 27. Bxc3 {[%clk 0:00:28]}  Rb6 {[%clk 0:00:08]} 28. Qxb7 {[%clk 0:00:26]}  Rxb7 {[%clk 0:00:08]} 29. Ra8+ {[%clk 0:00:26]}  Kh7 {[%clk 0:00:07]} 30. Be5 {[%clk 0:00:26]}  f6 {[%clk 0:00:06]} 31. Bf4 {[%clk 0:00:25]}  e5 {[%clk 0:00:05]} 32. Be3 {[%clk 0:00:25]}  Rc7 {[%clk 0:00:04]} 33. c4 {[%clk 0:00:21]}  f5 {[%clk 0:00:03]} 34. Ra7 {[%clk 0:00:19]}  Rxa7 {[%clk 0:00:02]} 35. Bxa7 {[%clk 0:00:19]}  Kg6 {[%clk 0:00:02]} 36. c5 {[%clk 0:00:19]}  Kf7 {[%clk 0:00:02]} 37. b4 {[%clk 0:00:20]}  Ke6 {[%clk 0:00:03]} 38. b5 {[%clk 0:00:20]}  Kd5 {[%clk 0:00:03]} 39. b6 {[%clk 0:00:19]}  Kc6 {[%clk 0:00:02]} 40. Bb8 {[%clk 0:00:19]}  Bxc5 {[%clk 0:00:02]} 41. Bxe5 {[%clk 0:00:19]}  g6 {[%clk 0:00:02]} 42. Bg7 {[%clk 0:00:18]}  h5 {[%clk 0:00:02]} 43. Kg2 {[%clk 0:00:19]}  Bxb6 {[%clk 0:00:02]} 44. f3 {[%clk 0:00:19]}  Kd7 {[%clk 0:00:03]} 45. Kh3 {[%clk 0:00:19]}  Ke6 {[%clk 0:00:03]} 46. Kh4 {[%clk 0:00:19]}  Kf7 {[%clk 0:00:04]} 47. Bc3 {[%clk 0:00:17]}  Bd8+ {[%clk 0:00:04]} 48. Kh3 {[%clk 0:00:14]}  Bf6 {[%clk 0:00:03]} 1/2-1/2

[Event "December 5 Early 2023"]
[Site "https://www.chess.com"]
[Date "2023.12.05"]
[Round "10"]
[White "Franchini, Gabriele"]
[Black "Vanek, Tomas"]
[Result "1-0"]
[Board "125"]
[TimeControl "180+1"]
[WhiteFideId "806790"]
[BlackFideId "313459"]
[WhiteElo "2335"]
[BlackElo "2160"]
[WhiteTeam "ITA"]
[BlackTeam "CZE"]
[WhiteClock "0:00:24"]
[BlackClock "0:00:19"]

1. e4 {[%clk 0:03:00]}  c5 {[%clk 0:02:59]} 2. Nf3 {[%clk 0:03:01]}  Nc6 {[%clk 0:02:58]} 3. Bb5 {[%clk 0:03:00]}  Nf6 {[%clk 0:02:58]} 4. Bxc6 {[%clk 0:02:59]}  bxc6 {[%clk 0:02:54]} 5. e5 {[%clk 0:02:59]}  Ng4 {[%clk 0:02:47]} 6. h3 {[%clk 0:02:57]}  Nh6 {[%clk 0:02:47]} 7. O-O {[%clk 0:02:56]}  g6 {[%clk 0:02:39]} 8. d4 {[%clk 0:02:56]}  cxd4 {[%clk 0:02:27]} 9. Qxd4 {[%clk 0:02:57]}  Qb6 {[%clk 0:02:25]} 10. Nc3 {[%clk 0:02:14]}  Qxd4 {[%clk 0:02:23]} 11. Nxd4 {[%clk 0:02:14]}  Bg7 {[%clk 0:02:23]} 12. Re1 {[%clk 0:02:03]}  Rb8 {[%clk 0:02:22]} 13. b3 {[%clk 0:01:59]}  Nf5 {[%clk 0:02:20]} 14. Nxf5 {[%clk 0:01:58]}  gxf5 {[%clk 0:02:20]} 15. Bb2 {[%clk 0:01:58]}  O-O {[%clk 0:02:12]} 16. Na4 {[%clk 0:01:57]}  d6 {[%clk 0:02:08]} 17. exd6 {[%clk 0:01:51]}  exd6 {[%clk 0:02:08]} 18. Rad1 {[%clk 0:01:45]}  Rd8 {[%clk 0:01:59]} 19. Ba3 {[%clk 0:01:41]}  d5 {[%clk 0:01:23]} 20. Bc5 {[%clk 0:01:30]}  Rb7 {[%clk 0:01:11]} 21. f4 {[%clk 0:01:30]}  Be6 {[%clk 0:01:10]} 22. Bd4 {[%clk 0:01:27]}  Bxd4+ {[%clk 0:01:06]} 23. Rxd4 {[%clk 0:01:28]}  c5 {[%clk 0:01:02]} 24. Nxc5 {[%clk 0:01:26]}  Rc7 {[%clk 0:01:00]} 25. b4 {[%clk 0:01:19]}  a5 {[%clk 0:00:57]} 26. c3 {[%clk 0:01:17]}  axb4 {[%clk 0:00:56]} 27. cxb4 {[%clk 0:01:18]}  Ra8 {[%clk 0:00:55]} 28. a4 {[%clk 0:01:19]}  Kg7 {[%clk 0:00:53]} 29. a5 {[%clk 0:01:19]}  Kf6 {[%clk 0:00:53]} 30. Kf2 {[%clk 0:01:13]}  Rb8 {[%clk 0:00:37]} 31. Ra1 {[%clk 0:01:03]}  Bc8 {[%clk 0:00:36]} 32. a6 {[%clk 0:00:59]}  Ra7 {[%clk 0:00:34]} 33. Ra4 {[%clk 0:00:49]}  Bb7 {[%clk 0:00:30]} 34. axb7 {[%clk 0:00:38]}  Rxa4 {[%clk 0:00:29]} 35. Nd7+ {[%clk 0:00:35]}  Ke7 {[%clk 0:00:28]} 36. Nxb8 {[%clk 0:00:36]}  Kd6 {[%clk 0:00:27]} 37. Nc6 {[%clk 0:00:29]}  Ra2+ {[%clk 0:00:25]} 38. Kg1 {[%clk 0:00:27]}  Kxc6 {[%clk 0:00:21]} 39. b8=Q {[%clk 0:00:27]}  f6 {[%clk 0:00:20]} 40. Qe8+ {[%clk 0:00:26]}  Kd6 {[%clk 0:00:20]} 41. Qd8+ {[%clk 0:00:25]}  Kc6 {[%clk 0:00:19]} 42. Qxd5+ {[%clk 0:00:25]}  Kb6 {[%clk 0:00:19]} 43. Qxa2 {[%clk 0:00:24]}  h5 {[%clk 0:00:20]} 44. Qa5+ {[%clk 0:00:24]}  Kc6 {[%clk 0:00:19]} 45. Qc5+ {[%clk 0:00:24]}  Kb7 {[%clk 0:00:19]} 46. Rd7+ {[%clk 0:00:24]}  Kb8 {[%clk 0:00:20]} 47. Qb6+ {[%clk 0:00:23]}  Kc8 {[%clk 0:00:19]} 48. Qc7# {[%clk 0:00:24]} 1-0

[Event "December 5 Early 2023"]
[Site "https://www.chess.com"]
[Date "2023.12.05"]
[Round "10"]
[White "Buscar, Michael"]
[Black "Mirzoev, Azer"]
[Result "0-1"]
[Board "127"]
[TimeControl "180+1"]
[WhiteFideId "2603616"]
[BlackFideId "13400304"]
[WhiteElo "2342"]
[BlackElo "2603"]
[WhiteTeam "CAN"]
[BlackTeam "AZE"]
[WhiteClock "0:00:10"]
[BlackClock "0:01:28"]

1. Nf3 {[%clk 0:03:00]}  c5 {[%clk 0:02:58]} 2. g3 {[%clk 0:02:58]}  Nc6 {[%clk 0:02:58]} 3. Bg2 {[%clk 0:02:58]}  g6 {[%clk 0:02:59]} 4. d4 {[%clk 0:02:57]}  cxd4 {[%clk 0:02:58]} 5. Nxd4 {[%clk 0:02:58]}  Bg7 {[%clk 0:02:59]} 6. Nxc6 {[%clk 0:02:58]}  bxc6 {[%clk 0:03:00]} 7. O-O {[%clk 0:02:56]}  Rb8 {[%clk 0:03:00]} 8. c3 {[%clk 0:02:53]}  Nf6 {[%clk 0:02:56]} 9. Nd2 {[%clk 0:02:49]}  O-O {[%clk 0:02:52]} 10. Nb3 {[%clk 0:02:48]}  d5 {[%clk 0:02:50]} 11. Bf4 {[%clk 0:02:44]}  Rb7 {[%clk 0:02:47]} 12. Qc1 {[%clk 0:02:41]}  Bg4 {[%clk 0:02:44]} 13. Re1 {[%clk 0:02:35]}  Re8 {[%clk 0:02:44]} 14. Be5 {[%clk 0:02:28]}  h5 {[%clk 0:02:35]} 15. Nc5 {[%clk 0:02:25]}  Rb5 {[%clk 0:02:32]} 16. Nd3 {[%clk 0:02:20]}  Bf5 {[%clk 0:02:23]} 17. a4 {[%clk 0:02:07]}  Rb6 {[%clk 0:02:20]} 18. Bd4 {[%clk 0:01:55]}  Rb7 {[%clk 0:02:16]} 19. Nc5 {[%clk 0:01:50]}  Rb8 {[%clk 0:02:11]} 20. Nd3 {[%clk 0:01:46]}  Qd7 {[%clk 0:02:01]} 21. Be5 {[%clk 0:01:32]}  Rbd8 {[%clk 0:01:47]} 22. Qe3 {[%clk 0:01:25]}  Ng4 {[%clk 0:01:45]} 23. Qd4 {[%clk 0:00:45]}  Nxe5 {[%clk 0:01:44]} 24. Nxe5 {[%clk 0:00:41]}  Qc7 {[%clk 0:01:41]} 25. f4 {[%clk 0:00:38]}  c5 {[%clk 0:01:41]} 26. Qe3 {[%clk 0:00:23]}  d4 {[%clk 0:01:40]} 27. cxd4 {[%clk 0:00:21]}  cxd4 {[%clk 0:01:41]} 28. Qb3 {[%clk 0:00:20]}  Bxe5 {[%clk 0:01:39]} 29. fxe5 {[%clk 0:00:21]}  Qxe5 {[%clk 0:01:39]} 30. Rad1 {[%clk 0:00:20]}  e6 {[%clk 0:01:36]} 31. Bc6 {[%clk 0:00:17]}  Rb8 {[%clk 0:01:31]} 32. Qc4 {[%clk 0:00:13]}  Rec8 {[%clk 0:01:30]} 33. b4 {[%clk 0:00:12]}  Qe3+ {[%clk 0:01:29]} 34. Kf1 {[%clk 0:00:10]}  Bh3+ {[%clk 0:01:28]} 0-1

[Event "December 5 Early 2023"]
[Site "https://www.chess.com"]
[Date "2023.12.05"]
[Round "10"]
[White "IranianCheetah"]
[Black "Kotlyar, Kirill"]
[Result "0-1"]
[Board "128"]
[TimeControl "180+1"]
[BlackFideId "24145599"]
[WhiteElo "2321"]
[BlackElo "2583"]
[BlackTeam "RUS"]
[WhiteClock "0:00:05"]
[BlackClock "0:00:50"]

1. e4 {[%clk 0:03:00]}  e5 {[%clk 0:02:52]} 2. Nf3 {[%clk 0:03:01]}  Nc6 {[%clk 0:02:52]} 3. Bb5 {[%clk 0:03:01]}  a6 {[%clk 0:02:52]} 4. Bxc6 {[%clk 0:03:02]}  dxc6 {[%clk 0:02:53]} 5. O-O {[%clk 0:03:03]}  f6 {[%clk 0:02:53]} 6. d4 {[%clk 0:03:03]}  exd4 {[%clk 0:02:54]} 7. Nxd4 {[%clk 0:03:04]}  c5 {[%clk 0:02:55]} 8. Nb3 {[%clk 0:03:03]}  Qxd1 {[%clk 0:02:56]} 9. Rxd1 {[%clk 0:03:04]}  Bd7 {[%clk 0:02:57]} 10. Nc3 {[%clk 0:03:03]}  O-O-O {[%clk 0:02:57]} 11. Bf4 {[%clk 0:03:03]}  Ne7 {[%clk 0:02:54]} 12. Nd5 {[%clk 0:03:01]}  Nxd5 {[%clk 0:02:52]} 13. Rxd5 {[%clk 0:02:59]}  Be7 {[%clk 0:02:52]} 14. Nxc5 {[%clk 0:02:55]}  Bc6 {[%clk 0:02:53]} 15. Rxd8+ {[%clk 0:02:50]}  Rxd8 {[%clk 0:02:53]} 16. Ne6 {[%clk 0:02:46]}  Rd7 {[%clk 0:02:44]} 17. f3 {[%clk 0:02:34]}  g5 {[%clk 0:02:42]} 18. Be3 {[%clk 0:02:32]}  b6 {[%clk 0:02:38]} 19. Ng7 {[%clk 0:02:21]}  Bc5 {[%clk 0:02:12]} 20. Nf5 {[%clk 0:02:20]}  Rd2 {[%clk 0:02:02]} 21. Ne7+ {[%clk 0:01:41]}  Kb7 {[%clk 0:01:48]} 22. Bxc5 {[%clk 0:01:41]}  bxc5 {[%clk 0:01:45]} 23. Nxc6 {[%clk 0:01:41]}  Kxc6 {[%clk 0:01:46]} 24. Rc1 {[%clk 0:01:41]}  c4 {[%clk 0:01:41]} 25. h4 {[%clk 0:01:38]}  gxh4 {[%clk 0:01:40]} 26. Kh2 {[%clk 0:01:38]}  Kc5 {[%clk 0:01:36]} 27. Kh3 {[%clk 0:01:12]}  a5 {[%clk 0:01:25]} 28. Kxh4 {[%clk 0:00:58]}  Rxg2 {[%clk 0:01:25]} 29. Kh3 {[%clk 0:00:59]}  Rd2 {[%clk 0:01:25]} 30. Kg4 {[%clk 0:00:59]}  Kd4 {[%clk 0:01:22]} 31. Kf4 {[%clk 0:00:54]}  a4 {[%clk 0:01:19]} 32. a3 {[%clk 0:00:49]}  c3 {[%clk 0:01:11]} 33. bxc3+ {[%clk 0:00:41]}  Kxc3 {[%clk 0:01:11]} 34. Rh1 {[%clk 0:00:30]}  Rxc2 {[%clk 0:01:00]} 35. Rh6 {[%clk 0:00:29]}  Kb3 {[%clk 0:00:57]} 36. Rxf6 {[%clk 0:00:30]}  c5 {[%clk 0:00:57]} 37. Rb6+ {[%clk 0:00:25]}  Kxa3 {[%clk 0:00:57]} 38. e5 {[%clk 0:00:23]}  Re2 {[%clk 0:00:54]} 39. Kf5 {[%clk 0:00:15]}  c4 {[%clk 0:00:54]} 40. e6 {[%clk 0:00:15]}  c3 {[%clk 0:00:53]} 41. f4 {[%clk 0:00:14]}  c2 {[%clk 0:00:54]} 42. Rc6 {[%clk 0:00:14]}  Kb2 {[%clk 0:00:53]} 43. Rb6+ {[%clk 0:00:12]}  Kc3 {[%clk 0:00:51]} 44. Rc6+ {[%clk 0:00:12]}  Kd4 {[%clk 0:00:49]} 45. Kf6 {[%clk 0:00:12]}  Kd5 {[%clk 0:00:50]} 46. Rxc2 {[%clk 0:00:09]}  Rxc2 {[%clk 0:00:49]} 47. e7 {[%clk 0:00:09]}  Re2 {[%clk 0:00:49]} 48. Kf7 {[%clk 0:00:06]}  a3 {[%clk 0:00:49]} 49. f5 {[%clk 0:00:06]}  a2 {[%clk 0:00:49]} 50. f6 {[%clk 0:00:05]}  a1=Q {[%clk 0:00:50]} 0-1

[Event "December 5 Early 2023"]
[Site "https://www.chess.com"]
[Date "2023.12.05"]
[Round "10"]
[White "Rose, Felix"]
[Black "Minko, Dmitry"]
[Result "1-0"]
[Board "129"]
[TimeControl "180+1"]
[WhiteFideId "5105722"]
[BlackFideId "24188468"]
[WhiteElo "2313"]
[BlackElo "2496"]
[WhiteTeam "MEX"]
[BlackTeam "FID"]
[WhiteClock "0:00:15"]
[BlackClock "0:01:04"]

1. e4 {[%clk 0:02:57]}  e5 {[%clk 0:02:58]} 2. Nf3 {[%clk 0:02:58]}  Nc6 {[%clk 0:02:59]} 3. Bb5 {[%clk 0:02:58]}  Nf6 {[%clk 0:02:57]} 4. O-O {[%clk 0:02:57]}  Nxe4 {[%clk 0:02:57]} 5. d4 {[%clk 0:02:54]}  Nd6 {[%clk 0:02:57]} 6. dxe5 {[%clk 0:02:54]}  Nxb5 {[%clk 0:02:57]} 7. a4 {[%clk 0:02:54]}  d6 {[%clk 0:02:57]} 8. axb5 {[%clk 0:02:52]}  Nxe5 {[%clk 0:02:57]} 9. Re1 {[%clk 0:02:48]}  Be6 {[%clk 0:02:31]} 10. Nxe5 {[%clk 0:02:23]}  dxe5 {[%clk 0:02:31]} 11. Qxd8+ {[%clk 0:02:23]}  Rxd8 {[%clk 0:02:32]} 12. Rxa7 {[%clk 0:02:22]}  Bc5 {[%clk 0:02:32]} 13. Rxb7 {[%clk 0:01:42]}  Bb6 {[%clk 0:02:32]} 14. Nc3 {[%clk 0:01:43]}  O-O {[%clk 0:02:32]} 15. Be3 {[%clk 0:01:39]}  Bxe3 {[%clk 0:02:26]} 16. fxe3 {[%clk 0:01:34]}  Rd2 {[%clk 0:02:26]} 17. Re2 {[%clk 0:01:31]}  Rxe2 {[%clk 0:02:11]} 18. Nxe2 {[%clk 0:01:31]}  Rc8 {[%clk 0:02:12]} 19. b3 {[%clk 0:01:27]}  Kf8 {[%clk 0:02:03]} 20. Nc3 {[%clk 0:01:27]}  Ke8 {[%clk 0:01:59]} 21. Kf2 {[%clk 0:01:26]}  Kd8 {[%clk 0:01:55]} 22. h4 {[%clk 0:01:23]}  Ra8 {[%clk 0:01:55]} 23. b6 {[%clk 0:01:13]}  cxb6 {[%clk 0:01:56]} 24. Rxb6 {[%clk 0:01:14]}  Rc8 {[%clk 0:01:56]} 25. Rd6+ {[%clk 0:01:08]}  Ke7 {[%clk 0:01:53]} 26. Rd3 {[%clk 0:01:06]}  e4 {[%clk 0:01:53]} 27. Nxe4 {[%clk 0:01:04]}  Rxc2+ {[%clk 0:01:53]} 28. Rd2 {[%clk 0:01:04]}  Rc1 {[%clk 0:01:50]} 29. Rb2 {[%clk 0:01:02]}  Bd5 {[%clk 0:01:39]} 30. Ng3 {[%clk 0:00:57]}  Kd6 {[%clk 0:01:29]} 31. Nf5+ {[%clk 0:00:56]}  Kc5 {[%clk 0:01:27]} 32. b4+ {[%clk 0:00:39]}  Kb5 {[%clk 0:01:27]} 33. Nxg7 {[%clk 0:00:39]}  Rc4 {[%clk 0:01:27]} 34. Nf5 {[%clk 0:00:35]}  Rxb4 {[%clk 0:01:15]} 35. Rxb4+ {[%clk 0:00:18]}  Kxb4 {[%clk 0:01:15]} 36. g4 {[%clk 0:00:15]}  Kc3 {[%clk 0:01:14]} 37. Kg3 {[%clk 0:00:15]}  Kd3 {[%clk 0:01:14]} 38. Kf4 {[%clk 0:00:16]}  f6 {[%clk 0:01:12]} 39. Ng3 {[%clk 0:00:16]}  Be6 {[%clk 0:01:09]} 40. Nh5 {[%clk 0:00:16]}  f5 {[%clk 0:00:57]} 41. gxf5 {[%clk 0:00:16]}  Bf7 {[%clk 0:00:57]} 42. Ng3 {[%clk 0:00:15]}  Kc4 {[%clk 0:00:58]} 43. e4 {[%clk 0:00:16]}  Kd4 {[%clk 0:00:58]} 44. e5 {[%clk 0:00:16]}  Kd5 {[%clk 0:00:59]} 45. Ne4 {[%clk 0:00:14]}  h6 {[%clk 0:00:58]} 46. Nf6+ {[%clk 0:00:14]}  Kc6 {[%clk 0:00:56]} 47. e6 {[%clk 0:00:14]}  Bxe6 {[%clk 0:00:57]} 48. fxe6 {[%clk 0:00:14]}  Kd6 {[%clk 0:00:58]} 49. Kf5 {[%clk 0:00:14]}  Ke7 {[%clk 0:00:59]} 50. Ng8+ {[%clk 0:00:14]}  Ke8 {[%clk 0:00:59]} 51. Nxh6 {[%clk 0:00:15]}  Ke7 {[%clk 0:01:00]} 52. Ng4 {[%clk 0:00:15]}  Kf8 {[%clk 0:01:00]} 53. Kf6 {[%clk 0:00:15]}  Kg8 {[%clk 0:01:01]} 54. e7 {[%clk 0:00:15]}  Kh7 {[%clk 0:01:02]} 55. h5 {[%clk 0:00:13]}  Kg8 {[%clk 0:01:02]} 56. e8=Q+ {[%clk 0:00:14]}  Kh7 {[%clk 0:01:03]} 57. Qg6+ {[%clk 0:00:14]}  Kh8 {[%clk 0:01:04]} 58. Qg7# {[%clk 0:00:15]} 1-0